[Event "*** Titled Tuesday Blitz"]
[Site "Chess.com"]
[Date "2018.06.05"]
[Round "1"]
[White "GadimbayliA"]
[Black "HarutyunianTigranK"]
[Result "1-0"]
[WhiteElo "2422"]
[BlackElo "2725"]
[TimeControl "180+2"]
[EndTime "13:07:43 PDT"]
[Termination "GadimbayliA won by resignation"]

1. e4 {[%clk 0:03:01.3]} 1... e5 {[%clk 0:03:00.4]} 2. Nf3 {[%clk 0:03:01.8]}
2... Nc6 {[%clk 0:03:01.6]} 3. Bb5 {[%clk 0:03:02]} 3... a6 {[%clk 0:03:02.3]}
4. Ba4 {[%clk 0:03:02.4]} 4... Nf6 {[%clk 0:03:03.1]} 5. O-O {[%clk 0:03:02.4]}
5... Be7 {[%clk 0:03:03.8]} 6. Re1 {[%clk 0:03:02.2]} 6... b5 {[%clk 0:03:04.9]}
7. Bb3 {[%clk 0:03:02]} 7... O-O {[%clk 0:03:06.4]} 8. c3 {[%clk 0:03:02.5]}
8... d5 {[%clk 0:03:07.1]} 9. exd5 {[%clk 0:03:02.5]} 9... Nxd5 {[%clk 0:03:09]}
10. Nxe5 {[%clk 0:03:02.3]} 10... Nxe5 {[%clk 0:03:10.5]} 11. Rxe5 {[%clk
0:03:04.2]} 11... c6 {[%clk 0:03:11.8]} 12. d3 {[%clk 0:03:03.7]} 12... Bd6
{[%clk 0:03:12.6]} 13. Re1 {[%clk 0:03:03.9]} 13... Bf5 {[%clk 0:02:59.8]} 14.
Nd2 {[%clk 0:02:58.8]} 14... Bxd3 {[%clk 0:02:35.4]} 15. Nf3 {[%clk 0:02:51.4]}
15... Bg6 {[%clk 0:01:59.2]} 16. g3 {[%clk 0:02:41.5]} 16... Bc5 {[%clk
0:01:30.3]} 17. a4 {[%clk 0:02:18.1]} 17... b4 {[%clk 0:01:18.2]} 18. Bxd5
{[%clk 0:01:53.1]} 18... cxd5 {[%clk 0:01:17.4]} 19. cxb4 {[%clk 0:01:48.9]}
19... Bxb4 {[%clk 0:01:19.3]} 20. Bd2 {[%clk 0:01:50.4]} 20... Rb8 {[%clk
0:00:59.2]} 21. Ne5 {[%clk 0:01:43]} 21... Bc5 {[%clk 0:00:21.1]} 22. b4 {[%clk
0:01:22.2]} 22... Bb6 {[%clk 0:00:12.5]} 23. Rc1 {[%clk 0:01:13.8]} 23... Qf6
{[%clk 0:00:11.7]} 24. Bf4 {[%clk 0:01:10]} 24... Be4 {[%clk 0:00:04.6]} 25. Nd7
{[%clk 0:01:05.9]} 25... Qf5 {[%clk 0:00:03.7]} 26. Nxb8 {[%clk 0:00:54.7]}
26... g5 {[%clk 0:00:02.6]} 27. Nc6 {[%clk 0:00:51.3]} 27... Qh3 {[%clk
0:00:02.6]} 28. Rxe4 {[%clk 0:00:49.1]} 28... dxe4 {[%clk 0:00:04.5]} 29. Bxg5
{[%clk 0:00:43.6]} 29... Re8 {[%clk 0:00:05.7]} 30. Qe2 {[%clk 0:00:40.6]} 30...
Qf5 {[%clk 0:00:05.2]} 31. Ne7+ {[%clk 0:00:37.9]} 31... Rxe7 {[%clk 0:00:06.2]}
32. Bxe7 {[%clk 0:00:39.8]} 1-0

[Event "*** Titled Tuesday Blitz"]
[Site "Chess.com"]
[Date "2018.06.05"]
[Round "1"]
[White "pKiLz5Rn9b"]
[Black "Martins-BR"]
[Result "1-0"]
[WhiteElo "2626"]
[BlackElo "2301"]
[TimeControl "180+2"]
[EndTime "13:07:45 PDT"]
[Termination "pKiLz5Rn9b won by resignation"]

1. b3 {[%clk 0:03:01.9]} 1... Nf6 {[%clk 0:02:58.1]} 2. Bb2 {[%clk 0:03:02.7]}
2... g6 {[%clk 0:02:59.1]} 3. Nf3 {[%clk 0:02:59.9]} 3... Bg7 {[%clk 0:02:56.3]}
4. g3 {[%clk 0:03:00.4]} 4... d6 {[%clk 0:02:56.1]} 5. d4 {[%clk 0:02:51.2]}
5... O-O {[%clk 0:02:55.6]} 6. Bg2 {[%clk 0:02:50.2]} 6... a5 {[%clk 0:02:51.7]}
7. c4 {[%clk 0:02:48.3]} 7... Nc6 {[%clk 0:02:49.1]} 8. d5 {[%clk 0:02:44.5]}
8... Nb8 {[%clk 0:02:43]} 9. O-O {[%clk 0:02:43.4]} 9... e5 {[%clk 0:02:40.3]}
10. dxe6 {[%clk 0:02:16.3]} 10... fxe6 {[%clk 0:02:40.3]} 11. Nc3 {[%clk
0:02:08.1]} 11... Nc6 {[%clk 0:02:34.6]} 12. Qd2 {[%clk 0:02:04.9]} 12... Qe7
{[%clk 0:02:28.9]} 13. Rad1 {[%clk 0:02:04.7]} 13... e5 {[%clk 0:02:15.9]} 14.
Ng5 {[%clk 0:02:02]} 14... h6 {[%clk 0:02:08.9]} 15. Nd5 {[%clk 0:01:58]} 15...
Nxd5 {[%clk 0:02:09.4]} 16. Bxd5+ {[%clk 0:01:56.8]} 16... Kh8 {[%clk
0:02:09.4]} 17. Ne4 {[%clk 0:01:57.4]} 17... Bh3 {[%clk 0:02:01]} 18. Rfe1
{[%clk 0:01:58.3]} 18... g5 {[%clk 0:01:57.5]} 19. f3 {[%clk 0:01:56.5]} 19...
Be6 {[%clk 0:01:50.3]} 20. Kg2 {[%clk 0:01:56]} 20... Rf7 {[%clk 0:01:43.8]} 21.
Nf2 {[%clk 0:01:56.4]} 21... Raf8 {[%clk 0:01:37.3]} 22. Bc3 {[%clk 0:01:56.6]}
22... Nd4 {[%clk 0:01:24.7]} 23. Bxd4 {[%clk 0:01:35.2]} 23... Bxd5 {[%clk
0:01:17.9]} 24. cxd5 {[%clk 0:01:34.8]} 24... exd4 {[%clk 0:01:17.1]} 25. Qxa5
{[%clk 0:01:32.4]} 25... b6 {[%clk 0:01:06.6]} 26. Qd2 {[%clk 0:01:30.6]} 26...
Qe5 {[%clk 0:00:46.2]} 27. Rh1 {[%clk 0:01:11.5]} 27... Qxd5 {[%clk 0:00:45.4]}
28. h4 {[%clk 0:01:12.2]} 28... Kg8 {[%clk 0:00:36.3]} 29. hxg5 {[%clk
0:01:12.2]} 29... hxg5 {[%clk 0:00:37.3]} 30. Qd3 {[%clk 0:01:12.5]} 30... Qf5
{[%clk 0:00:34.6]} 31. Rc1 {[%clk 0:01:01.7]} 31... c5 {[%clk 0:00:31.6]} 32.
Ne4 {[%clk 0:00:56.8]} 32... Be5 {[%clk 0:00:26.7]} 33. Rh5 {[%clk 0:00:51]}
33... Rg7 {[%clk 0:00:23.5]} 34. Rch1 {[%clk 0:00:51.4]} 34... Kf7 {[%clk
0:00:20.1]} 35. Nxd6+ {[%clk 0:00:51]} 1-0

[Event "*** Titled Tuesday Blitz"]
[Site "Chess.com"]
[Date "2018.06.05"]
[Round "1"]
[White "bait_or_mate"]
[Black "Firouzja2003"]
[Result "0-1"]
[WhiteElo "2425"]
[BlackElo "2947"]
[TimeControl "180+2"]
[EndTime "13:07:48 PDT"]
[Termination "Firouzja2003 won by resignation"]

1. d4 {[%clk 0:02:33.4]} 1... Nf6 {[%clk 0:02:54.4]} 2. c4 {[%clk 0:02:33.2]}
2... g6 {[%clk 0:02:55.1]} 3. Nc3 {[%clk 0:02:33.1]} 3... Bg7 {[%clk 0:02:55]}
4. e4 {[%clk 0:02:34.5]} 4... d6 {[%clk 0:02:56.2]} 5. Nf3 {[%clk 0:02:35.3]}
5... O-O {[%clk 0:02:57.2]} 6. Be2 {[%clk 0:02:36.5]} 6... e5 {[%clk 0:02:57.6]}
7. O-O {[%clk 0:02:37.7]} 7... Nbd7 {[%clk 0:02:52.1]} 8. Re1 {[%clk 0:02:38.1]}
8... exd4 {[%clk 0:02:51.4]} 9. Nxd4 {[%clk 0:02:38.4]} 9... Re8 {[%clk
0:02:52.4]} 10. Bf1 {[%clk 0:02:32.1]} 10... c6 {[%clk 0:02:53.4]} 11. f3 {[%clk
0:02:28]} 11... Nh5 {[%clk 0:02:34.6]} 12. Be3 {[%clk 0:02:25.2]} 12... Ne5
{[%clk 0:02:32]} 13. Qd2 {[%clk 0:02:21.1]} 13... a6 {[%clk 0:02:28]} 14. Rad1
{[%clk 0:02:15]} 14... b5 {[%clk 0:02:15.2]} 15. cxb5 {[%clk 0:02:03.1]} 15...
axb5 {[%clk 0:02:17.1]} 16. b3 {[%clk 0:01:58.2]} 16... b4 {[%clk 0:01:59.2]}
17. Na4 {[%clk 0:01:57.2]} 17... Bd7 {[%clk 0:01:56.1]} 18. h3 {[%clk
0:01:42.6]} 18... Bxh3 {[%clk 0:01:39.5]} 19. f4 {[%clk 0:01:18.3]} 19... Bg4
{[%clk 0:01:39.3]} 20. fxe5 {[%clk 0:01:15.6]} 20... Bxd1 {[%clk 0:01:40.1]} 21.
Rxd1 {[%clk 0:01:11.4]} 21... Bxe5 {[%clk 0:01:41.1]} 22. Nxc6 {[%clk
0:01:08.1]} 22... Qh4 {[%clk 0:01:42.2]} 23. Nxe5 {[%clk 0:01:08]} 23... Ng3
{[%clk 0:00:59.7]} 24. Bd3 {[%clk 0:00:49.9]} 24... Rxe5 {[%clk 0:00:49.2]} 25.
Bf4 {[%clk 0:00:30.2]} 25... Nxe4 {[%clk 0:00:49.7]} 26. Bxe4 {[%clk 0:00:25.6]}
26... Rxe4 {[%clk 0:00:51.6]} 27. Bxd6 {[%clk 0:00:24.9]} 27... Rae8 {[%clk
0:00:50.7]} 28. Rf1 {[%clk 0:00:19.1]} 28... Rd4 {[%clk 0:00:40.5]} 29. g3
{[%clk 0:00:13.2]} 29... Rxd2 {[%clk 0:00:40.1]} 30. gxh4 {[%clk 0:00:12.9]}
30... Rxd6 {[%clk 0:00:41.6]} 31. Rf4 {[%clk 0:00:14.1]} 31... Rd2 {[%clk
0:00:42.3]} 0-1

[Event "*** Titled Tuesday Blitz"]
[Site "Chess.com"]
[Date "2018.06.05"]
[Round "1"]
[White "matiss90"]
[Black "ChessWarrior7197"]
[Result "0-1"]
[WhiteElo "2354"]
[BlackElo "2689"]
[TimeControl "180+2"]
[EndTime "13:07:56 PDT"]
[Termination "ChessWarrior7197 won by resignation"]

1. e4 {[%clk 0:03:00.9]} 1... e5 {[%clk 0:02:59.9]} 2. Nf3 {[%clk 0:03:01.7]}
2... Nc6 {[%clk 0:03:01.1]} 3. Bb5 {[%clk 0:03:02.7]} 3... a6 {[%clk 0:03:01.5]}
4. Ba4 {[%clk 0:03:03.7]} 4... Nf6 {[%clk 0:03:01.9]} 5. O-O {[%clk 0:03:04.4]}
5... Be7 {[%clk 0:03:01.7]} 6. d3 {[%clk 0:03:04.9]} 6... b5 {[%clk 0:03:01.2]}
7. Bb3 {[%clk 0:03:05.7]} 7... d6 {[%clk 0:03:02.8]} 8. c3 {[%clk 0:03:06.8]}
8... O-O {[%clk 0:03:02.5]} 9. Re1 {[%clk 0:03:07.5]} 9... Na5 {[%clk
0:02:57.9]} 10. Bc2 {[%clk 0:03:08.3]} 10... c5 {[%clk 0:02:59.4]} 11. Nbd2
{[%clk 0:03:09.4]} 11... Nc6 {[%clk 0:02:59.4]} 12. Nf1 {[%clk 0:03:10.1]} 12...
Re8 {[%clk 0:02:59.7]} 13. Ne3 {[%clk 0:03:09.5]} 13... Bf8 {[%clk 0:02:59.7]}
14. a4 {[%clk 0:03:05.6]} 14... Bb7 {[%clk 0:02:59.5]} 15. h3 {[%clk 0:03:02]}
15... b4 {[%clk 0:02:55.4]} 16. Nh2 {[%clk 0:03:02.2]} 16... bxc3 {[%clk
0:02:54.8]} 17. bxc3 {[%clk 0:03:02.7]} 17... g6 {[%clk 0:02:50.9]} 18. Nhg4
{[%clk 0:03:02.5]} 18... Bg7 {[%clk 0:02:44.1]} 19. Rb1 {[%clk 0:03:01.8]} 19...
Rb8 {[%clk 0:02:44.5]} 20. Qf3 {[%clk 0:02:55.4]} 20... Nxg4 {[%clk 0:02:43.3]}
21. hxg4 {[%clk 0:02:56.2]} 21... Ne7 {[%clk 0:02:37.6]} 22. Bb3 {[%clk
0:02:53.7]} 22... Rf8 {[%clk 0:02:35.1]} 23. g3 {[%clk 0:02:44.8]} 23... Bc6
{[%clk 0:02:32.3]} 24. Bd2 {[%clk 0:02:43.5]} 24... Qd7 {[%clk 0:02:30.4]} 25.
Kg2 {[%clk 0:02:43.7]} 25... Rb7 {[%clk 0:02:19.3]} 26. g5 {[%clk 0:02:43.9]}
26... Kh8 {[%clk 0:01:49.4]} 27. Rh1 {[%clk 0:02:43.5]} 27... f5 {[%clk
0:01:37.6]} 28. gxf6 {[%clk 0:02:18.9]} 28... Bxf6 {[%clk 0:01:37.4]} 29. Ng4
{[%clk 0:01:50.9]} 29... Nf5 {[%clk 0:01:31.2]} 30. Bh6 {[%clk 0:01:03.3]} 30...
Bg7 {[%clk 0:01:23.1]} 31. Bg5 {[%clk 0:00:54]} 31... Nh4+ {[%clk 0:00:51.9]}
32. Rxh4 {[%clk 0:00:53.8]} 32... Rxf3 {[%clk 0:00:53.4]} 33. Kxf3 {[%clk
0:00:16.1]} 33... Qf5+ {[%clk 0:00:53.2]} 34. Kg2 {[%clk 0:00:09.4]} 34... Qxg5
{[%clk 0:00:53.3]} 35. Rxh7+ {[%clk 0:00:10.4]} 35... Kxh7 {[%clk 0:00:53.8]}
36. Rh1+ {[%clk 0:00:11.8]} 36... Bh6 {[%clk 0:00:55.1]} 37. Nxh6 {[%clk
0:00:12.9]} 37... Qxh6 {[%clk 0:00:55.6]} 0-1

[Event "*** Titled Tuesday Blitz"]
[Site "Chess.com"]
[Date "2018.06.05"]
[Round "1"]
[White "Arash-Tiger"]
[Black "alpasya2009"]
[Result "1-0"]
[WhiteElo "2792"]
[BlackElo "2406"]
[TimeControl "180+2"]
[EndTime "13:07:59 PDT"]
[Termination "Arash-Tiger won on time"]

1. e4 {[%clk 0:03:01.9]} 1... d6 {[%clk 0:03:00.9]} 2. d4 {[%clk 0:03:01.7]}
2... Nf6 {[%clk 0:03:01.9]} 3. Nc3 {[%clk 0:03:02.6]} 3... e5 {[%clk 0:03:02.1]}
4. Nf3 {[%clk 0:03:02.9]} 4... Nbd7 {[%clk 0:03:02.7]} 5. Bc4 {[%clk 0:03:01.4]}
5... Be7 {[%clk 0:03:03.9]} 6. O-O {[%clk 0:03:00.5]} 6... O-O {[%clk
0:03:05.3]} 7. a4 {[%clk 0:03:01.6]} 7... c6 {[%clk 0:03:05.7]} 8. a5 {[%clk
0:03:02.7]} 8... Rb8 {[%clk 0:03:03.6]} 9. Qe2 {[%clk 0:03:03.6]} 9... b5 {[%clk
0:03:04.1]} 10. axb6 {[%clk 0:03:04.3]} 10... axb6 {[%clk 0:03:05.5]} 11. d5
{[%clk 0:03:04.8]} 11... cxd5 {[%clk 0:03:01.9]} 12. Nxd5 {[%clk 0:03:04.9]}
12... Nxd5 {[%clk 0:03:02.4]} 13. Bxd5 {[%clk 0:03:05.7]} 13... b5 {[%clk
0:03:01.7]} 14. Rd1 {[%clk 0:03:05.4]} 14... Nf6 {[%clk 0:02:57.5]} 15. Bb3
{[%clk 0:02:27.1]} 15... Qc7 {[%clk 0:02:49.2]} 16. Bg5 {[%clk 0:02:27.2]} 16...
Be6 {[%clk 0:02:40.1]} 17. Nh4 {[%clk 0:02:27.8]} 17... Rfc8 {[%clk 0:02:29]}
18. Nf5 {[%clk 0:02:18.7]} 18... Bxf5 {[%clk 0:02:25.6]} 19. exf5 {[%clk
0:02:20.6]} 19... h6 {[%clk 0:02:21.9]} 20. Bxf6 {[%clk 0:02:18.4]} 20... Bxf6
{[%clk 0:02:22.3]} 21. Ra6 {[%clk 0:02:20.3]} 21... Rb6 {[%clk 0:02:17.6]} 22.
Rxb6 {[%clk 0:02:20.4]} 22... Qxb6 {[%clk 0:02:18.5]} 23. g3 {[%clk 0:02:22.3]}
23... Qc6 {[%clk 0:01:57.9]} 24. Rd5 {[%clk 0:02:21.1]} 24... e4 {[%clk
0:01:43.7]} 25. Qxe4 {[%clk 0:02:02.7]} 25... Bxb2 {[%clk 0:01:43.5]} 26. Qd3
{[%clk 0:01:55]} 26... Be5 {[%clk 0:01:23.9]} 27. Rxb5 {[%clk 0:01:50.8]} 27...
Qa6 {[%clk 0:00:21.5]} 28. Qd5 {[%clk 0:01:37.5]} 28... Rc7 {[%clk 0:00:17.8]}
29. Kg2 {[%clk 0:01:25.4]} 29... Qc8 {[%clk 0:00:13.9]} 30. g4 {[%clk
0:01:16.1]} 30... h5 {[%clk 0:00:12.9]} 31. Ra5 {[%clk 0:01:14.1]} 31... Qd7
{[%clk 0:00:07.1]} 32. Ra8+ {[%clk 0:01:10.4]} 32... Kh7 {[%clk 0:00:08.5]} 33.
Rf8 {[%clk 0:01:08.2]} 33... hxg4 {[%clk 0:00:04.3]} 34. Qe4 {[%clk 0:01:05.6]}
34... Bf6 {[%clk 0:00:02.9]} 35. Qxg4 {[%clk 0:00:56.8]} 35... g6 {[%clk
0:00:04.3]} 36. Rxf7+ {[%clk 0:00:53.3]} 36... Qxf7 {[%clk 0:00:03]} 37. Bxf7
{[%clk 0:00:55.2]} 1-0

[Event "*** Titled Tuesday Blitz"]
[Site "Chess.com"]
[Date "2018.06.05"]
[Round "1"]
[White "tigra"]
[Black "florianschwabeneder"]
[Result "1-0"]
[WhiteElo "2720"]
[BlackElo "2372"]
[TimeControl "180+2"]
[EndTime "13:08:05 PDT"]
[Termination "tigra won by checkmate"]

1. e4 {[%clk 0:03:01.9]} 1... c5 {[%clk 0:03:00.3]} 2. Nf3 {[%clk 0:03:01.9]}
2... d6 {[%clk 0:03:01.1]} 3. d4 {[%clk 0:03:03.5]} 3... cxd4 {[%clk 0:03:02.9]}
4. Nxd4 {[%clk 0:03:05]} 4... Nf6 {[%clk 0:03:04.2]} 5. Nc3 {[%clk 0:03:06.5]}
5... Nc6 {[%clk 0:03:05.5]} 6. Bg5 {[%clk 0:03:07.1]} 6... e6 {[%clk 0:03:06.3]}
7. Qd2 {[%clk 0:03:07.6]} 7... a6 {[%clk 0:03:07.3]} 8. O-O-O {[%clk 0:03:07.5]}
8... Bd7 {[%clk 0:03:06]} 9. f3 {[%clk 0:03:06.6]} 9... Be7 {[%clk 0:03:01.1]}
10. g4 {[%clk 0:02:52.5]} 10... Qc7 {[%clk 0:02:51.4]} 11. Kb1 {[%clk
0:02:49.3]} 11... Rc8 {[%clk 0:02:49.8]} 12. h4 {[%clk 0:02:45.2]} 12... O-O
{[%clk 0:02:34.5]} 13. Be3 {[%clk 0:02:42.4]} 13... Ne5 {[%clk 0:02:33.1]} 14.
h5 {[%clk 0:02:36.8]} 14... b5 {[%clk 0:01:48.9]} 15. a3 {[%clk 0:02:36.6]}
15... Qb7 {[%clk 0:01:20.7]} 16. g5 {[%clk 0:02:31.8]} 16... Ne8 {[%clk
0:01:21.4]} 17. g6 {[%clk 0:02:27.8]} 17... Bf6 {[%clk 0:01:10.2]} 18. gxh7+
{[%clk 0:02:13.5]} 18... Kh8 {[%clk 0:01:09.1]} 19. h6 {[%clk 0:02:06.9]} 19...
g6 {[%clk 0:01:05.7]} 20. Bg5 {[%clk 0:02:07.8]} 20... Bc6 {[%clk 0:00:58.5]}
21. Be2 {[%clk 0:01:29.8]} 21... Qe7 {[%clk 0:00:56.2]} 22. f4 {[%clk
0:01:26.5]} 22... Bxg5 {[%clk 0:00:46.1]} 23. fxg5 {[%clk 0:01:28.4]} 23... Bb7
{[%clk 0:00:46.6]} 24. Nb3 {[%clk 0:01:26.3]} 24... Kxh7 {[%clk 0:00:40.9]} 25.
Qe3 {[%clk 0:01:22.1]} 25... Bc6 {[%clk 0:00:35.9]} 26. Qb6 {[%clk 0:01:20]}
26... Qb7 {[%clk 0:00:33.2]} 27. Qd4 {[%clk 0:01:19.7]} 27... Qc7 {[%clk
0:00:33.4]} 28. Rh2 {[%clk 0:01:18.8]} 28... Rb8 {[%clk 0:00:33.6]} 29. Rf2
{[%clk 0:01:18.3]} 29... a5 {[%clk 0:00:32.9]} 30. Na2 {[%clk 0:01:12.9]} 30...
a4 {[%clk 0:00:17]} 31. Nd2 {[%clk 0:01:07.6]} 31... Qe7 {[%clk 0:00:17.9]} 32.
Qe3 {[%clk 0:01:06.7]} 32... Qb7 {[%clk 0:00:06.3]} 33. Nb4 {[%clk 0:01:05.1]}
33... Bd7 {[%clk 0:00:07.5]} 34. Rdf1 {[%clk 0:01:04.3]} 34... Qc7 {[%clk
0:00:08]} 35. Qd4 {[%clk 0:01:02.8]} 35... Bc8 {[%clk 0:00:08.7]} 36. Nf3 {[%clk
0:01:00.6]} 36... Nxf3 {[%clk 0:00:08.5]} 37. Rxf3 {[%clk 0:01:00.5]} 37... e5
{[%clk 0:00:09.9]} 38. Qd5 {[%clk 0:01:00.2]} 38... Be6 {[%clk 0:00:10.2]} 39.
Qxe6 {[%clk 0:01:01.1]} 39... fxe6 {[%clk 0:00:11.2]} 40. Rxf8 {[%clk
0:01:02.7]} 40... Rb7 {[%clk 0:00:10.1]} 41. Rxe8 {[%clk 0:01:02.8]} 41... Qc5
{[%clk 0:00:06.1]} 42. Rff8 {[%clk 0:01:02.4]} 42... Qg1+ {[%clk 0:00:06.6]} 43.
Ka2 {[%clk 0:01:02.9]} 43... Qxg5 {[%clk 0:00:06.2]} 44. Rh8# {[%clk 0:01:03.8]}
1-0

[Event "*** Titled Tuesday Blitz"]
[Site "Chess.com"]
[Date "2018.06.05"]
[Round "1"]
[White "GasconJR"]
[Black "Durarbayli"]
[Result "0-1"]
[WhiteElo "2340"]
[BlackElo "2671"]
[TimeControl "180+2"]
[EndTime "13:08:07 PDT"]
[Termination "Durarbayli won by resignation"]

1. e4 {[%clk 0:02:57.9]} 1... c5 {[%clk 0:02:54.4]} 2. Nf3 {[%clk 0:02:58]} 2...
a6 {[%clk 0:02:55.2]} 3. c3 {[%clk 0:02:55.9]} 3... d5 {[%clk 0:02:51.9]} 4.
exd5 {[%clk 0:02:57]} 4... Qxd5 {[%clk 0:02:53.8]} 5. d4 {[%clk 0:02:58.5]} 5...
Nf6 {[%clk 0:02:55]} 6. Bd3 {[%clk 0:02:58.1]} 6... Bg4 {[%clk 0:02:49.6]} 7.
Be2 {[%clk 0:02:58.9]} 7... e6 {[%clk 0:02:46.7]} 8. O-O {[%clk 0:03:00.8]} 8...
Nc6 {[%clk 0:02:30.7]} 9. Be3 {[%clk 0:02:59.9]} 9... cxd4 {[%clk 0:02:30.6]}
10. cxd4 {[%clk 0:03:01.8]} 10... Be7 {[%clk 0:02:21.6]} 11. Nc3 {[%clk
0:03:01.4]} 11... Qa5 {[%clk 0:02:22.3]} 12. h3 {[%clk 0:03:01.6]} 12... Bh5
{[%clk 0:02:21.8]} 13. a3 {[%clk 0:02:46.1]} 13... O-O {[%clk 0:02:06]} 14. Qb3
{[%clk 0:02:44.7]} 14... Qc7 {[%clk 0:01:33.8]} 15. Rac1 {[%clk 0:02:44.3]}
15... Rfd8 {[%clk 0:01:31.9]} 16. Rfd1 {[%clk 0:02:43.7]} 16... Nd5 {[%clk
0:01:25.4]} 17. Ne4 {[%clk 0:02:22.7]} 17... Rac8 {[%clk 0:01:15.2]} 18. Nc5
{[%clk 0:02:21.9]} 18... Na5 {[%clk 0:01:11.3]} 19. Qa4 {[%clk 0:01:51.2]} 19...
b5 {[%clk 0:01:11.5]} 20. Qc2 {[%clk 0:01:43.8]} 20... Qb6 {[%clk 0:00:57]} 21.
Bg5 {[%clk 0:01:23.2]} 21... Bg6 {[%clk 0:00:35]} 22. Qd2 {[%clk 0:01:12.8]}
22... Nc6 {[%clk 0:00:30.9]} 23. Bxe7 {[%clk 0:01:12.7]} 23... Ndxe7 {[%clk
0:00:32.8]} 24. b4 {[%clk 0:00:54.8]} 24... Rd5 {[%clk 0:00:33.6]} 25. Qb2
{[%clk 0:00:21.5]} 25... Rcd8 {[%clk 0:00:34.2]} 26. Rd2 {[%clk 0:00:21.8]}
26... Nf5 {[%clk 0:00:29]} 27. Rcd1 {[%clk 0:00:23]} 27... h6 {[%clk 0:00:30.1]}
28. Kh2 {[%clk 0:00:23.4]} 28... Nd6 {[%clk 0:00:22.5]} 29. Kg1 {[%clk
0:00:20.1]} 29... Ne4 {[%clk 0:00:23.5]} 30. Rd3 {[%clk 0:00:14.3]} 30... Nd6
{[%clk 0:00:24.5]} 31. R3d2 {[%clk 0:00:15.4]} 31... Bh5 {[%clk 0:00:25.9]} 32.
Ne5 {[%clk 0:00:10.2]} 32... Bxe2 {[%clk 0:00:25.5]} 33. Rxe2 {[%clk 0:00:10.4]}
33... Nxe5 {[%clk 0:00:25.6]} 34. Rxe5 {[%clk 0:00:10.8]} 34... Nc4 {[%clk
0:00:26.8]} 35. Rxd5 {[%clk 0:00:12]} 35... Nxb2 {[%clk 0:00:27.9]} 0-1

[Event "*** Titled Tuesday Blitz"]
[Site "Chess.com"]
[Date "2018.06.05"]
[Round "1"]
[White "1stSecond"]
[Black "dcremisi"]
[Result "1-0"]
[WhiteElo "2599"]
[BlackElo "2285"]
[TimeControl "180+2"]
[EndTime "13:08:08 PDT"]
[Termination "1stSecond won by resignation"]

1. d4 {[%clk 0:03:01]} 1... d5 {[%clk 0:02:59.1]} 2. c4 {[%clk 0:03:01.8]} 2...
e6 {[%clk 0:03:00]} 3. Nf3 {[%clk 0:03:02.5]} 3... c6 {[%clk 0:03:01]} 4. Nc3
{[%clk 0:03:01.9]} 4... dxc4 {[%clk 0:03:00.1]} 5. e4 {[%clk 0:02:54]} 5... b5
{[%clk 0:03:01]} 6. a4 {[%clk 0:02:54.3]} 6... Bb4 {[%clk 0:03:00.4]} 7. Bd2
{[%clk 0:02:53.6]} 7... Bb7 {[%clk 0:02:57.2]} 8. b3 {[%clk 0:02:41.7]} 8... Nf6
{[%clk 0:02:12.9]} 9. bxc4 {[%clk 0:01:55.2]} 9... Bxc3 {[%clk 0:02:11.2]} 10.
Bxc3 {[%clk 0:01:57.1]} 10... Nxe4 {[%clk 0:02:11.4]} 11. Bd2 {[%clk 0:01:48.5]}
11... bxc4 {[%clk 0:02:05.3]} 12. Bxc4 {[%clk 0:01:41.8]} 12... Nxd2 {[%clk
0:02:04.7]} 13. Qxd2 {[%clk 0:01:43.7]} 13... Nd7 {[%clk 0:02:01.7]} 14. Rb1
{[%clk 0:01:41.1]} 14... Qc7 {[%clk 0:01:57.1]} 15. O-O {[%clk 0:01:18.6]} 15...
O-O {[%clk 0:01:50.3]} 16. Rfc1 {[%clk 0:01:10]} 16... c5 {[%clk 0:01:49.9]} 17.
Bb5 {[%clk 0:00:58.7]} 17... Bxf3 {[%clk 0:01:47.9]} 18. gxf3 {[%clk 0:01:00.6]}
18... a6 {[%clk 0:01:41.3]} 19. Bxd7 {[%clk 0:00:54.2]} 19... Qxd7 {[%clk
0:01:42.4]} 20. Rxc5 {[%clk 0:00:55.4]} 20... Qxa4 {[%clk 0:01:40.7]} 21. Re1
{[%clk 0:00:35.4]} 21... Rfd8 {[%clk 0:01:33.9]} 22. Re4 {[%clk 0:00:36.3]}
22... Rab8 {[%clk 0:01:29.1]} 23. Kg2 {[%clk 0:00:34.2]} 23... Qa1 {[%clk
0:01:26.8]} 24. Ra5 {[%clk 0:00:22.9]} 24... Qb2 {[%clk 0:01:12.4]} 25. Qf4
{[%clk 0:00:18.5]} 25... Qb6 {[%clk 0:01:11.6]} 26. Rg5 {[%clk 0:00:15.9]} 26...
f5 {[%clk 0:00:55.4]} 27. Qe5 {[%clk 0:00:12.6]} 27... g6 {[%clk 0:00:41.9]} 28.
Rh4 {[%clk 0:00:13.8]} 28... h5 {[%clk 0:00:09.5]} 29. Rxg6+ {[%clk 0:00:13.8]}
29... Kf8 {[%clk 0:00:11.4]} 30. Qf6+ {[%clk 0:00:13.5]} 30... Ke8 {[%clk
0:00:12.7]} 31. Rg7 {[%clk 0:00:15.1]} 31... Rb7 {[%clk 0:00:11.2]} 32. Rg6
{[%clk 0:00:10]} 32... Kd7 {[%clk 0:00:12.2]} 33. Rxh5 {[%clk 0:00:10.6]} 33...
Kc8 {[%clk 0:00:13.8]} 34. Rh8 {[%clk 0:00:10.7]} 34... Qxd4 {[%clk 0:00:13]}
35. Qxd4 {[%clk 0:00:11]} 1-0